Cogmind - Beta 15 @@@ ROGUE MODE // 2025.08.07 @ 17:35:35 Player: Skysub Result: Destroyed by X5-1SG(R) with Subdweller Beam Cannon Performance ------------- Evolutions (0) 0 Regions Visited (3) 600 Robots Destroyed (41) 205 Value Destroyed (881) 881 Prototype IDs (2) 40 Alien Tech Used (0) 0 Bonus (0) 0 TOTAL SCORE: 1726 Bonus ------- None Cogmind --------- Core Integrity 0/250 Matter 140/300 Energy 16/100 System Corruption 0% Temperature Cool (9) Movement Treading (160) Location -10/Subcaves Parts ------- > --- POWER (1) -------- (None) > --- PROPULSION (2) --- Light Treads Light Treads > --- UTILITY (2) ------ Large Storage Unit Structural Scanner > --- WEAPON (2) ------- Heavy Assault Rifle Heavy Assault Rifle > --- INVENTORY (15) --- Compact Wheel Compact Wheel Combat Airjet Cooling System High-capacity Matter Pod (200) Hardened Light Armor Plating Hardened Light Armor Plating Hardened Light Armor Plating Hacking Suite Heavy Assault Rifle Heavy Assault Rifle Subdweller Machine Gun Mining Laser Peak State ------------ > --- POWER ------------ Ion Engine > --- PROPULSION ------- Light Treads Light Treads > --- UTILITY ---------- Large Storage Unit Hardened Light Armor Plating > --- WEAPON ----------- Heavy Assault Rifle Heavy Assault Rifle > --- INVENTORY -------- Light Treads Compact Wheel Compact Wheel Small Storage Unit High-capacity Matter Pod Structural Scanner Hardened Light Armor Plating Hardened Light Armor Plating Hardened Light Armor Plating Hacking Suite Beam Cannon Assault Rifle Assault Rifle Light Assault Rifle Mining Laser [Rating: 12] Favorites ----------- Power Ion Engine Engine Ion Engine Propulsion Light Treads Treads Light Treads Wheel Compact Wheel Utility Large Storage Unit Device Seismic Detector Storage Large Storage Unit Protection Hardened Light Armor Plating Weapon Heavy Assault Rifle Ballistic Gun Heavy Assault Rifle Launcher Grenade Launcher Special Weapon Mining Laser Build | -11 -10 -10 -10 ------- Run | Yrd Mat Min Sub Slots Evolved . | . . . . Power . | . . . . Propulsion . | . . . . Utility . | . . . . Weapon . | . . . . Parts Attached 22 | 8 5 2 7 Power 2 | 1 1 . . Engine 2 | 1 1 . . Core . | . . . . Reactor . | . . . . Propulsion 5 | 2 . 2 1 Treads 4 | 2 . 1 1 Leg . | . . . . Wheel 1 | . . 1 . Hover . | . . . . Flight . | . . . . Utility 6 | 2 2 . 2 Device 2 | 1 . . 1 Storage 2 | 1 1 . . Processor . | . . . . Hackware . | . . . . Protection 2 | . 1 . 1 Artifact . | . . . . Weapon 9 | 3 2 . 4 Energy Gun . | . . . . Energy Cannon . | . . . . Ballistic Gun 7 | 3 2 . 2 Ballistic Cannon . | . . . . Launcher 1 | . . . 1 Special Weapon 1 | . . . 1 Impact Weapon . | . . . . Slashing Weapon . | . . . . Piercing Weapon . | . . . . Special Melee Weapon . | . . . . Unidentified Prototypes . | . . . . Parts Lost 6 | . 2 2 2 Power 2 | . 1 . 1 Propulsion 2 | . . 2 . Utility 1 | . 1 . . Weapon 1 | . . . 1 Highest Loss Streak 1 | . 1 1 1 To Critical Strikes . | . . . . Average Backups 12 | 3 10 14 14 Power . | . . . . Propulsion 2 | 1 2 2 2 Utility 5 | . 4 7 6 Weapon 3 | . 3 5 4 Tool/Special . | . . . . Unused Backups 9 | . . 1 8 Power . | . . . . Propulsion 2 | . . . 2 Utility 5 | . . . 5 Weapon 2 | . . 1 1 Tool/Special . | . . . . Average Slot Usage (%) 96 | . 95 99 92 Engine 12 | . 14 14 7 Treads 27 | . 28 25 26 Device 2 | . 4 . . Storage 14 | . 14 14 14 Protection 8 | . 5 14 13 Ballistic Gun 25 | . 28 28 15 Launcher 2 | . . . 11 Peak Build Rating 12 | 7 12 12 12 Average Rating 9 | 5 9 11 10 On Entrance 7 | . 7 12 12 Naked Turns . | . . . . Heaviest Build 36 | 13 36 36 36 Greatest Support 40 | 40 40 40 40 Greatest Overweight (x) 2 | 2 . 2 2 Average Overweight (x) . | . . . . Largest Inventory Capacity 15 | 8 15 15 15 Average Capacity 14 | 7 14 15 15 Most Carried 15 | 5 15 15 15 Average Carried 12 | 3 10 14 14 Final Capacity 15 | 8 15 15 15 Final Carried 15 | 5 15 14 13 Class Distribution -------------------- 100% | Mutant Dominant Class ---------------- Mutant | -10/Materials Mutant | -10/Mines Mutant | -10/Subcaves Resources | -11 -10 -10 -10 ----------- Run | Yrd Mat Min Sub Matter Collected 1154 | 286 642 88 138 Remotely . | . . . . Salvage Created 1165 | 62 663 197 243 Parts 82 | 7 47 14 14 Haulers Intercepted 2 | . 2 . . Recyclers Shooed 2 | 1 1 . . Parts Field Recycled . | . . . . Retrieved Matter . | . . . . Parts Self-Destructed 4 | . . . 4 Prevented . | . . . . Kills | -11 -10 -10 -10 ------- Run | Yrd Mat Min Sub Combat Hostiles Destroyed 29 | . 15 7 7 Guns 26 | . 15 7 4 AOE 3 | . . . 3 Classes Destroyed 12 | 1 8 1 2 Worker 1 | . 1 . . Builder 2 | . 1 1 . Tunneler 3 | 3 . . . Hauler 2 | . 2 . . Recycler 1 | . 1 . . Operator 1 | . 1 . . Watcher 2 | . 2 . . Swarmer 12 | . 9 3 . Grunt 11 | . 6 2 3 Sentry 1 | . . . 1 Demolisher 2 | . . 2 . Subdweller 3 | . . . 3 Best Kill Streak 6 | 3 6 6 2 Combat Bots Only 5 | . 5 5 2 Max Kills in Single Turn 2 | 1 2 2 1 Gunslinging 1 | . 1 . . Exploded 1 | . . . 1 Melee . | . . . . Uniques/NPCs Destroyed . | . . . . Combat | -11 -10 -10 -10 -------- Run | Yrd Mat Min Sub Hostile Shots Fired 135 | . 73 21 41 Missed 37 | . 20 4 13 Hits 98 | . 53 17 28 Projectile 98 | . 53 17 28 AOE 5 | . . 5 . Critical Strikes 3 | . 1 . 2 Damage Taken 1350 | . 500 329 521 Core 277 | . 81 75 121 Absorbed by Shields . | . . . . Core Remaining (%) 100 | 100 . . . Volleys Fired 104 | 4 66 13 21 Largest 2 | 2 2 2 2 Hottest 100 | 40 46 46 100 Shots Fired 207 | 8 132 26 41 Gun 192 | 8 132 26 26 Cannon . | . . . . Launcher 14 | . . . 14 Special 1 | . . . 1 Kinetic 192 | 8 132 26 26 Thermal 1 | . . . 1 Explosive 14 | . . . 14 Electromagnetic . | . . . . Robot Hit Streak 16 | 3 13 5 16 Robot Miss Streak 3 | 1 3 2 2 Penetration Max . | . . . . Secondary Targets 2 | . 1 1 . Max Gunslinging Chain 1 | . 1 1 . Shots Hit Robots 135 | 5 82 17 31 Core Hits 61 | 4 31 13 13 Critical Kills 1 | . 1 . . Critical Parts Destroyed 3 | . 3 . . Critical Strikes 4 | . 4 . . Destroy 4 | . 4 . . Melee Attacks . | . . . . Impact . | . . . . Slashing . | . . . . Piercing . | . . . . Sneak Attacks . | . . . . Combat Hostiles . | . . . . Follow-up Attacks . | . . . . Damage Inflicted 2350 | 89 1111 319 831 Guns 1842 | 81 1103 319 339 Cannons . | . . . . Explosions 492 | . . . 492 Melee . | . . . . Ramming 16 | 8 8 . . Kinetic 1842 | 81 1103 319 339 Thermal . | . . . . Explosive 492 | . . . 492 Electromagnetic . | . . . . Impact . | . . . . Slashing . | . . . . Piercing . | . . . . Highest Corruption . | . . . . Average Corruption . | . . . . Corruption Purged . | . . . . Corruption Blocked . | . . . . Overload Shots . | . . . . Overflow Damage . | . . . . Projectiles . | . . . . Explosions . | . . . . Melee . | . . . . Knockbacks 1 | 1 . . . Impact 1 | 1 . . . Kinetic . | . . . . Secondary . | . . . . Self-Inflicted Damage . | . . . . Shots . | . . . . Rammed 4 | 2 2 . . Targets Rammed 4 | 2 2 . . Kicked . | . . . . Crushed . | . . . . Highest Temperature 9 | . 6 9 . Average Temperature 6 | . 6 8 . Received Heat Transfer 240 | . 96 21 123 Siege Activations . | . . . . Martial Activations . | . . . . Shielding Activations . | . . . . Robots Disrupted . | . . . . Combat Hostiles . | . . . . Robots Corrupted . | . . . . Combat Hostiles . | . . . . Parts Fried . | . . . . Impact Corruptions . | . . . . Robots Melted . | . . . . Combat Hostiles . | . . . . Parts Melted . | . . . . Heat Transferred . | . . . . Parts Sabotaged . | . . . . Parts Stolen . | . . . . Parts Stripped . | . . . . Power Chain Reactions . | . . . . Alert | -11 -10 -10 -10 ------- Run | Yrd Mat Min Sub Maximum Alert Level . | . . . . Low Security (%) 100 | 100 100 100 . Level 1 . | . . . . Level 2 . | . . . . Level 3 . | . . . . Level 4 . | . . . . Level 5 . | . . . . High Security . | . . . . Max Security . | . . . . Peak Influence 181 | 10 181 120 . Initial 22 | . . 22 . Average 65 | 1 81 28 . Influence Increases 760 | 15 480 175 90 Destroy 0b10 Robot/C 520 | . 300 140 80 Destroy 0b10 Robot/NC 60 | 15 40 5 . Destroy Leader 118 | . 78 30 10 Successful Hack 16 | . 16 . . Select Force Hacks 30 | . 30 . . Destroy Structure 1 | . 1 . . Lose Combat Pursuer 15 | . 15 . . Influence Decreases 760 | 15 421 151 173 Entered New Map 81 | . . 37 44 Time Decay 639 | 15 401 104 119 Lost Part 40 | . 20 10 10 Squads Dispatched 5 | . 5 . . Investigation 2 | . 2 . . Extermination . | . . . . Reinforcement 3 | . 3 . . Assault . | . . . . Garrison . | . . . . Intercept . | . . . . Searches Triggered . | . . . . Construction Impeded . | . . . . Haulers Reinforced . | . . . . Active Scanning Responses . | . . . . Cargo Convoy Interrupts . | . . . . Stealth | -11 -10 -10 -10 --------- Run | Yrd Mat Min Sub Distress Signals 2 | . 2 . . Communications Jammed . | . . . . Distress Signals . | . . . . Times Spotted 41 | . 25 7 9 Peak Tracking Total 4 | . 4 4 2 Tactical Retreats 1 | . 1 . . Traps | -11 -10 -10 -10 ------- Run | Yrd Mat Min Sub Traps Triggered 2 | . 2 . . Indirectly . | . . . . Trap Hack Attempts . | . . . . Triggered . | . . . . Disarmed . | . . . . Reprogrammed . | . . . . Reused . | . . . . Traps Extracted . | . . . . Installed . | . . . . Triggered . | . . . . Machines | -11 -10 -10 -10 ---------- Run | Yrd Mat Min Sub Machines Disabled . | . . . . Max in Single Turn . | . . . . Machines Repaired . | . . . . Machines Dismantled . | . . . . Machines Sabotaged . | . . . . Overloaded Fab Kills . | . . . . Hacking | -11 -10 -10 -10 --------- Run | Yrd Mat Min Sub Machines Accessed 7 | . 7 . . Terminals 6 | . 6 . . Fabricators . | . . . . Repair Stations . | . . . . Recycling Units 1 | . 1 . . Scanalyzers . | . . . . Garrison Access . | . . . . Total Hacks 31 | . 31 . . Successful 18 | . 18 . . Failed 13 | . 13 . . Catastrophic . | . . . . Database Lockouts . | . . . . Manual 24 | . 24 . . Terminals 29 | . 29 . . Fabricators . | . . . . Repair Stations . | . . . . Recycling Units 2 | . 2 . . Scanalyzers . | . . . . Garrison Access . | . . . . Terminal Hacks 6 | . 6 . . Prototype ID Bank 1 | . 1 . . Terminal Index 1 | . 1 . . Locate Traps 1 | . 1 . . Recall Reinforcements 1 | . 1 . . Registered Prototypes 1 | . 1 . . Zone Layout 1 | . 1 . . Fabricator Hacks . | . . . . Repair Station Hacks . | . . . . Recycling Unit Hacks 1 | . 1 . . Report Inventory 1 | . 1 . . Scanalyzer . | . . . . Garrison Access Hacks . | . . . . Unauthorized Hacks 11 | . 11 . . Terminals 10 | . 10 . . Botnet 4 | . 4 . . Skim 6 | . 6 . . Fabricators . | . . . . Repair Stations . | . . . . Recycling Units 1 | . 1 . . Tunnel 1 | . 1 . . Scanalyzers . | . . . . Garrison Access . | . . . . Data Cores Recovered . | . . . . Used . | . . . . Hacking Detections 6 | . 6 . . Full Trace Events 1 | . 1 . . Feedback Events . | . . . . Feedback Blocked . | . . . . Robot Schematics Acquired . | . . . . Robots Built . | . . . . Authchips . | . . . . Time . | . . . . Total Robot Build Rating . | . . . . Part Schematics Acquired . | . . . . Parts Built . | . . . . Authchips . | . . . . Time . | . . . . Total Part Build Rating . | . . . . Parts Repaired . | . . . . Time . | . . . . Parts Recycled . | . . . . Recycled Matter . | . . . . Retrieved Matter . | . . . . Retrieved Components . | . . . . Parts Scanalyzed . | . . . . Part Schematics Acquired . | . . . . Parts Damaged . | . . . . Bothacking | -11 -10 -10 -10 ------------ Run | Yrd Mat Min Sub Used RIF Installer . | . . . . Robots Hacked . | . . . . Non-combat . | . . . . Combat . | . . . . Robot Hacks Applied . | . . . . Relay Couplers Released . | . . . . Fabnet Peak Effective % . | . . . . Robots Rewired . | . . . . Allies Hacked . | . . . . Hacks Repelled . | . . . . Allies | -11 -10 -10 -10 -------- Run | Yrd Mat Min Sub Total Allies . | . . . . Largest Group . | . . . . Highest-Rated Group . | . . . . Highest-Rated Ally . | . . . . Total Orders . | . . . . Ally Attacks . | . . . . Total Damage . | . . . . Kills . | . . . . Allies Corrupted . | . . . . Allies Melted . | . . . . Intel | -11 -10 -10 -10 ------- Run | Yrd Mat Min Sub Active Infowar (turns) 465 | 13 419 . 33 Structural 33 | . . . 33 Seismic 432 | 13 419 . . Robot Analysis Total . | . . . . Derelict Logs Recovered . | . . . . Drone Launches . | . . . . Drone Recoveries . | . . . . Exploration | -11 -10 -10 -10 ------------- Run | Yrd Mat Min Sub Turns Passed 2425 | 95 1389 474 467 Spaces Moved 1168 | 43 624 259 242 Core 5 | 5 . . . Treads 1070 | 38 624 188 220 Legs . | . . . . Wheels 93 | . . 71 22 Hover . | . . . . Flight . | . . . . Fastest Speed 50 | 50 160 130 130 Average Speed 157 | 150 160 151 157 Slowest Speed 160 | 160 160 160 160 Overloaded Moves . | . . . . Propulsion Burnouts . | . . . . Robots Hopped . | . . . . Potential Cave-ins . | . . . . Cave-ins Triggered . | . . . . Exploration Rate (%) 38 | 3 89 41 19 Regions Visited 3 Branch Regions 2 Pre-discovered Areas 2 | . 1 . 1 Known Exits Taken . | . . . . Unknown Exits Taken 3 | 1 1 1 . Scrap Searched . | . . . . Spaces Dug . | . . . . Terrain Destroyed 68 | . . . 68 Melee . | . . . . Projectile . | . . . . AOE 68 | . . . 68 Terrain Rammed . | . . . . Walls Destroyed . | . . . . Machines Disabled . | . . . . Actions | -11 -10 -10 -10 --------- Run | Yrd Mat Min Sub Total 1540 | 60 883 314 283 Wait 218 | . 173 38 7 Move 1165 | 42 623 258 242 Hop . | . . . . Pick Up 19 | 4 11 2 2 Fast Attach 8 | 7 1 . . Attach 4 | . 1 2 1 Detach . | . . . . Swap 12 | 1 3 . 8 Drop 6 | . 3 1 2 Fire 104 | 4 66 13 21 Melee . | . . . . Ram . | . . . . Kick . | . . . . Crush 4 | 2 2 . . Escape Stasis . | . . . . Rewire . | . . . . Trap . | . . . . Miscellaneous . | . . . . Route ------- -11/Scrapyard -10/Materials (discovered 5 exits: [*Mat x3] / [*Min] / [*Sub]) -10/Mines -10/Subcaves History --------- Turn | Location | Event 2 | -11/Scrapyard | Met Revision 17 35 | -11/Scrapyard | Discovered new exit (range 14) 96 | -11/Scrapyard | Entered Materials 309 | -10/Materials | Build established: Mutant 426 | -10/Materials | Discovered new exit (range 10) 552 | -10/Materials | Discovered new exit (range 3) 746 | -10/Materials | Discovered new exit (range 10) 1256 | -10/Materials | Discovered new exit (range 8) 1472 | -10/Materials | Discovered new exit (range 9) 1485 | -10/Materials | Entered Mines 1491 | -10/Mines | YI-UF0 nonchalantly dropped a Grenade Launcher on the ground 1813 | -10/Mines | Assembled infested the area 1850 | -10/Mines | Core integrity fell below 50% 1954 | -10/Mines | Discovered new exit (range 5) 1959 | -10/Mines | Entered Subcaves 1960 | -10/Subcaves | Approached by a straggling Scientist 2185 | -10/Subcaves | Core integrity fell below 20% 2265 | -10/Subcaves | Learned location of Zion (-7) 2265 | -10/Subcaves | Met a Zionite searching for "candidates" 2426 | -10/Subcaves | Destroyed by X5-1SG(R) with Subdweller Beam Cannon Last Messages --------------- 02153_ Acquired 21 matter. 02158_ Acquired 10 matter. 02163_ Subatomizers dissect the Sub. Optics. 02184_ FU-K7I(R) destroyed. 02190_ Ion Engine destroyed. 02191_ The unstable cave ceiling collapses. 02193_ Destroyed Scrap Shield. 02199_ 3D-ORI(R) destroyed. 02204_ The unstable cave ceiling collapses. 02214_ Subatomizers dissect the Disposable Heat Sink. 02224_ The unstable cave ceiling collapses. 02227_ Subatomizers dissect the Disposable Heat Sink. 02240_ 3V-INJ(z): "She is not going to be happy we haven't found any suitable candidates yet." 02265_ 3V-INJ(z): "Hey you! It's really dangerous down here, I feel that you could die at any moment. For your health and safety might I suggest a trip to Zion?" World map updated: -7/Zion. 02395_ Dropped Hrd. Light Armor Plating. 02421_ Grenade Launcher destroyed. Map ----- +----------------------------------------------------+ | ?????????????????????????????????????????????????? | | ?????????????????????????????????????????????????? | | ?????????????????????????????????????????????????? | | ?????????????????????????????????????????????????? | | ?????????????????????????????????????????????????? | | ?????????????????????????????????????????????????? | | ?????????????????????????????????????????????????? | | ?????????????????????????????????????????????????? | | ?????????????????????????????????????????????????? | | ????????????####?????????????????????????????????? | | ???????????? ###?????????????????????????????????? | | ???????????? ?????????????????????????????????? | | ?????????###""#""##??????????????????????????????? | | ?????????"##"### ########????????????????????????? | | ????????? ## ############???????????????????? | | ????????? "" #######???????????????????? | | ????????? # "" ##???????????????????? | | ????????? ## """" ##???????????????????? | | ?????????? """ " ! ##???????????????????? | | ???????????? """ "" ##???????????????????? | | ???????????? ##" ## ###???????????????????? | | ????????????### ## R ####???????????????????? | | ?????????????## ?## " R #####??????????????????? | | ?????????????## ?##"" ###??????????????##??? | | ?????????????## ??## "" ##?????????????## ### | | ?????????????# ??###"" @ ###?????????????# # | | ????????????? ???##### ######?????????????# | | ????????????? ????#### #####??????????????# | | ?????????????"???????## ##????????????????# | | ?????????????????????## ###????????????????# | | ?????????????????????## ##????????????????## | | ?????????????????????# ##??????????????????## | | ?????????????????????## ##???????????????????## | | ?????????????????????## #??????????############# | | ?????????????????????# ############# #### | | ?????????????????????## # # # # # | | ?????????????????????## | | ?????????????????????## ## | | ?????????????????????# ### ## ##### #### | | ?????????????????????#################???######??? | | ??????????????????????###????????????????????????? | | ?????????????????????????????????????????????????? | | ?????????????????????????????????????????????????? | | ?????????????????????????????????????????????????? | | ?????????????????????????????????????????????????? | | ?????????????????????????????????????????????????? | | ?????????????????????????????????????????????????? | | ?????????????????????????????????????????????????? | | ?????????????????????????????????????????????????? | | ?????????????????????????????????????????????????? | +----------------------------------------------------+ Best States ------------- Heat Dissipation 25 Energy Generation 10 Energy Capacity 250 Matter Stores 300 Matter Capacity 300 Sight Range 16 Terrain Scan Density 10 Armor Coverage 150 Evasion (%) 40 Recoil Reduction 2 Item Schematics ----------------- None Robot Schematics ------------------ None Fabricated ------------ Nothing Repaired ---------- Nothing Alien Tech Used ----------------- None Achievements -------------- None Challenges ------------ None Game ------ Seed SalvagingPiercingRedirector Manual? 0 Play Time 00:15:15 Cumulative 236.1 hours Start 2025.08.07 @ 02:09:52 End 2025.08.07 @ 17:35:35 Sessions 2 Manual Loads 0 Difficulty Rogue Special Mode None Game No. 250 Rogue 250 Adventurer 0 Explorer 0 Win Type - Total 10 Types 5/0/3/1/0/0/0/0/0/1 Lore% 74 Gallery% 70 Achievement% 64 Wizard Run 0 Options --------- Layout 1 ASCII 0 Keyboard 1 Movement Numpad Keybinds 0 Fullscreen 1 Font 32/SmallcapsGlow Map View 77x35 Zoom Use 0% Tactical HUD 1 Map Filters NONE Filters NONE Steam 1 RUN: f45b7474-d918-40f0-81f8-da221f380f10